{"text_format":"3","workbook":"xlsx","n_sheets":2,"sheets":["Praćenje aktivnosti","Popis aktivnosti"],"not_rendered":{"charts":1,"defined_names":15},"read":"whole","date_system":"1900"}

{"sheet":"Praćenje aktivnosti","index":0,"n_rows":23,"n_cols":11,"rows_kept":23,"merged":[[0,0,0,2],[0,3,3,10],[1,0,1,2],[2,0,5,0],[2,1,3,1],[4,1,5,1],[6,0,9,0],[6,1,7,1],[8,1,9,1],[10,0,13,0],[10,1,11,1],[12,1,13,1],[14,0,17,0],[14,1,15,1],[16,1,17,1],[18,0,21,0],[18,1,19,1],[20,1,21,1],[22,0,23,0],[22,1,23,1],[22,2,23,2]]}
["Praćenje aktivnosti"]
["Pratite pet glavnih aktivnosti! Zamijenite podatke o aktivnosti ispod aktivnosti kojima se najčešće bavite. Zatim stavke za njih dodajte u zapisnik aktivnosti da biste pratili svoj napredak."]
["Biciklizam",{"$f":"SUMIF(Popis[Aktivnost],Kategorija1,Popis[Ukupno])","v":{"v":19.46,"d":"19.5"}}]
[null,null,"Milje"]
[null,{"$f":"SUMIF(Popis[Aktivnost],Kategorija1,Popis[kalorija])","v":847},"Kalorije","Datum","Aktivnost","Vrijeme početka","Trajanje","Ukupno","Jedinice","kalorija","Napomena"]
[{"$nulls":3},"Datum","Biciklizam","16:00:00","00:23:00",3.66,{"$f":"IFERROR(VLOOKUP(Popis[[#This Row],[Aktivnost]],PretraživanjeAktivnosti,2,FALSE),\"\")","v":"Milje"},173,"Vruće i vlažno"]
["Plivanje",{"$f":"SUMIF(Popis[Aktivnost],Kategorija2,Popis[Ukupno])","v":{"v":1700,"d":"1700.0"}},null,"Datum","Biciklizam","14:30:00","00:45:00",7.8,{"$f":"IFERROR(VLOOKUP(Popis[[#This Row],[Aktivnost]],PretraživanjeAktivnosti,2,FALSE),\"\")","v":"Milje"},330,"Hladno poslijepodne"]
[null,null,"Metri","Datum","Plivanje","10:00:00","00:30:00",1700,{"$f":"IFERROR(VLOOKUP(Popis[[#This Row],[Aktivnost]],PretraživanjeAktivnosti,2,FALSE),\"\")","v":"Metri"},237,"Prethodne sam se noći dobro naspavao"]
[null,{"$f":"SUMIF(Popis[Aktivnost],Kategorija2,Popis[kalorija])","v":237},"kalorija","Datum","Aktivnost 3","13:30:00","00:35:00",3227,{"$f":"IFERROR(VLOOKUP(Popis[[#This Row],[Aktivnost]],PretraživanjeAktivnosti,2,FALSE),\"\")","v":"Koraci"},150]
[{"$nulls":3},"Datum","Aktivnost 4","05:30:00","00:30:00",30,{"$f":"IFERROR(VLOOKUP(Popis[[#This Row],[Aktivnost]],PretraživanjeAktivnosti,2,FALSE),\"\")","v":"Ponavljanja"},115]
["Aktivnost 3",{"$f":"SUMIF(Popis[Aktivnost],Kategorija3,Popis[Ukupno])","v":{"v":3227,"d":"3227.0"}},null,"Datum","Aktivnost 5","06:00:00","00:45:00",5,{"$f":"IFERROR(VLOOKUP(Popis[[#This Row],[Aktivnost]],PretraživanjeAktivnosti,2,FALSE),\"\")","v":"Milje"},345]
[null,null,"Koraci","Datum","Biciklizam","10:00:00","00:40:00",8,{"$f":"IFERROR(VLOOKUP(Popis[[#This Row],[Aktivnost]],PretraživanjeAktivnosti,2,FALSE),\"\")","v":"Milje"},344]
[null,{"$f":"SUMIF(Popis[Aktivnost],Kategorija3,Popis[kalorija])","v":150},"kalorija"]
[]
["Aktivnost 4",{"$f":"SUMIF(Popis[Aktivnost],Kategorija4,Popis[Ukupno])","v":{"v":30,"d":"30.0"}}]
[null,null,"Ponavljanja"]
[null,{"$f":"SUMIF(Popis[Aktivnost],Kategorija4,Popis[kalorija])","v":115},"Kalorije"]
[]
["Aktivnost 5",{"$f":"SUMIF(Popis[Aktivnost],Kategorija5,Popis[Ukupno])","v":{"v":5,"d":"5.0"}}]
[null,null,"Milje"]
[null,{"$f":"SUMIF(Popis[Aktivnost],Kategorija5,Popis[kalorija])","v":345},"Kalorije"]
[]
["Ukupno",{"$f":"SUM(B21,B17,B13,B9,B5)","v":1694},"kalorija"]

{"sheet":"Popis aktivnosti","index":1,"n_rows":8,"n_cols":3,"rows_kept":8,"hidden":true,"merged":[[0,1,0,2],[1,1,1,2]]}
[null,"Popis aktivnosti"]
[null,"Popis u nastavku vezan je uz prilagođene aktivnosti i popunjava padajući popis u zapisniku aktivnosti. Ovaj list mora ostati sakriven."]
[null,"Aktivnost","Jedinice"]
[null,{"$f":"TRIM(Kategorija1)","v":"Biciklizam"},{"$f":"JediniceKategorije1","v":"Milje"}]
[null,{"$f":"TRIM(Kategorija2)","v":"Plivanje"},{"$f":"JediniceKategorije2","v":"Metri"}]
[null,{"$f":"TRIM(Kategorija3)","v":"Aktivnost 3"},{"$f":"JediniceKategorije3","v":"Koraci"}]
[null,{"$f":"TRIM(Kategorija4)","v":"Aktivnost 4"},{"$f":"JediniceKategorije4","v":"Ponavljanja"}]
[null,{"$f":"TRIM(Kategorija5)","v":"Aktivnost 5"},{"$f":"JediniceKategorije5","v":"Milje"}]